bitfinex/quotes_BTCUSD_20250225
["timestamp","ask_amount","ask_price","bid_price","bid_amount"]
[1740484942652,0.05576307,89495.0,89486.0,0.1]
[1740484942892,0.05509479,89494.0,89486.0,0.1]
[1740484943083,0.0055,89500.0,89485.0,0.09184394]
[1740484943285,0.05534594,89490.0,89479.0,0.32346]
[1740484944062,0.05534594,89490.0,89471.0,0.32346]
[1740484944485,0.00019674,89494.0,89471.0,0.32346]
[1740484944486,0.05526734,89486.0,89471.0,0.32346]
[1740484944887,0.05521783,89482.0,89471.0,0.32346]
[1740484946556,0.05521783,89482.0,89456.0,0.32346]
[1740484946751,0.00021987,89481.0,89456.0,0.32346]
[1740484946968,0.05583933,89480.0,89456.0,0.32346]
[1740484947370,0.05583933,89480.0,89451.0,0.5428]
[1740484947580,0.05513896,89478.0,89436.0,0.0493]
[1740484948144,0.01754747,89469.0,89414.0,0.3706]
[1740484948494,0.05566931,89468.0,89414.0,0.3706]
[1740484949143,0.05566931,89468.0,89433.0,0.09042051]
[1740484949346,0.25,89476.0,89442.0,0.09042051]
[1740484949545,0.05542156,89475.0,89442.0,0.09042051]
[1740484949767,0.05542156,89475.0,89443.0,0.3235]
[1740484950836,0.033653,89481.0,89443.0,0.3235]
[1740484950837,0.05583933,89480.0,89443.0,0.3235]
[1740484951894,0.01754794,89471.0,89443.0,0.3235]
[1740484952008,0.05504331,89470.0,89443.0,0.3235]
[1740484952203,0.17791469,89479.0,89432.0,0.09537674]
[1740484952204,0.05513896,89478.0,89432.0,0.09537674]
[1740484952431,0.05579187,89462.0,89432.0,0.09537674]
[1740484952786,0.25,89463.0,89433.0,0.09042051]
[1740484952990,0.25,89460.0,89433.0,0.09042051]
[1740484953146,0.05506345,89459.0,89433.0,0.09042051]
[1740484954355,0.05506345,89459.0,89432.0,0.09537674]
[1740484954551,0.05506345,89459.0,89432.0,0.09622494]
[1740484954985,0.05501497,89452.0,89432.0,0.09622494]
[1740484955705,0.07286225,89453.0,89432.0,0.09622494]
[1740484956333,0.01755007,89453.0,89432.0,0.09622494]
[1740484956518,0.01755007,89453.0,89433.0,0.09042051]
[1740484956718,0.0555781,89455.0,89433.0,0.09042051]
[1740484956944,0.10025675,89456.0,89434.0,0.0768]
[1740484957065,0.10025675,89456.0,89435.0,0.0453]
[1740484957772,0.10025675,89456.0,89436.0,0.3235]
[1740484957990,0.10025675,89456.0,89442.0,0.09042051]
[1740484958367,0.10025675,89456.0,89451.0,0.09042051]
[1740484958570,0.10025675,89456.0,89452.0,0.3235]
[1740484959321,0.25,89455.0,89452.0,0.3235]
[1740484959900,0.10025675,89457.0,89452.0,0.3235]
[1740484960511,0.25,89456.0,89452.0,0.3235]
[1740484961463,0.25,89456.0,89443.0,0.1299]
[1740484963487,0.05584958,89465.0,89443.0,0.1299]
[1740484963688,0.05528252,89471.0,89443.0,0.1299]
[1740484963869,0.25,89478.0,89443.0,0.1299]
[1740484964471,0.25,89478.0,89444.0,0.09042051]
[1740484964674,0.05527321,89474.0,89444.0,0.09042051]
[1740484965553,0.25,89478.0,89444.0,0.09042051]
[1740484965754,0.05711796,89475.0,89444.0,0.09042051]
[1740484965952,0.05527321,89474.0,89444.0,0.09042051]
[1740484966726,0.0016964,89475.0,89444.0,0.09042051]
[1740484966927,0.0016964,89475.0,89445.0,0.3235]
[1740484967154,0.0016964,89475.0,89454.0,0.1229]
[1740484967511,0.00020408,89474.0,89454.0,0.1229]
[1740484967942,0.00020408,89474.0,89455.0,0.00156472]
[1740484968598,0.0016964,89475.0,89462.0,0.09021643]
[1740484968807,0.10025675,89477.0,89466.0,0.1]
[1740484968976,0.10025675,89477.0,89467.0,0.00156454]
[1740484969195,0.10025675,89477.0,89469.0,0.0816]
[1740484969418,0.10025675,89477.0,89473.0,0.1298]
[1740484969620,0.0008487,89487.0,89476.0,0.0474]
[1740484969823,0.0008487,89487.0,89477.0,0.07836433]
[1740484969971,0.0008487,89487.0,89478.0,0.8663]
[1740484970157,0.0008487,89487.0,89479.0,0.00156432]
[1740484970386,0.0008487,89487.0,89478.0,0.8663]
[1740484971503,0.05544074,89525.0,89478.0,0.8663]
[1740484971703,0.05544074,89525.0,89479.0,0.03757077]
[1740484971909,0.01753776,89514.0,89479.0,0.03757077]
[1740484972104,0.01753776,89514.0,89478.0,0.3235]
[1740484972332,0.05571842,89520.0,89478.0,0.3235]
[1740484973318,0.30583641,89518.0,89477.0,0.0768]
[1740484973649,0.30566497,89516.0,89476.0,0.0474]
[1740484975051,0.30566497,89516.0,89477.0,0.09042051]
[1740484975052,0.05557554,89515.0,89477.0,0.09042051]
[1740484975255,0.25,89516.0,89477.0,0.09042051]
[1740484975452,0.25,89518.0,89477.0,0.09042051]
[1740484975657,0.05549823,89517.0,89477.0,0.09042051]
[1740484976285,0.0175386,89523.0,89478.0,0.94656449]
[1740484976448,0.05585536,89522.0,89488.0,0.09042051]
[1740484976648,0.05529629,89535.0,89488.0,0.09042051]
[1740484976846,0.01753707,89514.0,89488.0,0.09042051]
[1740484977063,0.01753707,89514.0,89489.0,0.3235]
[1740484977373,0.05575133,89530.0,89489.0,0.3235]
[1740484977596,0.01753682,89508.0,89489.0,0.3235]
[1740484977897,0.05549823,89517.0,89489.0,0.3235]
[1740484978075,0.01753731,89506.0,89489.0,0.3235]
[1740484981605,0.01753731,89506.0,89478.0,0.0787]
[1740484981822,0.05599692,89505.0,89469.0,0.0812]
[1740484982039,0.05583267,89511.0,89469.0,0.0812]
[1740484982243,0.05565724,89504.0,89469.0,0.0812]
[1740484982587,0.05565724,89504.0,89463.0,0.3235]
[1740484982757,0.05565724,89504.0,89463.0,0.3683]
[1740484982963,0.033643,89505.0,89463.0,0.3683]
[1740484982964,0.033643,89505.0,89473.0,0.09042051]
[1740484983279,0.05565724,89504.0,89473.0,0.09042051]
[1740484983523,0.05565724,89504.0,89464.0,0.09042051]
[1740484983735,0.05566497,89516.0,89464.0,0.09042051]
[1740484983931,0.033641,89507.0,89464.0,0.09198521]
[1740484984217,0.05566497,89516.0,89464.0,0.09042051]
[1740484984572,0.05571055,89514.0,89464.0,0.09042051]
[1740484984780,0.05507165,89512.0,89464.0,0.09038051]
[1740484984983,0.01754072,89502.0,89464.0,0.09038051]
[1740484985196,0.3055761,89494.0,89464.0,0.09038051]
[1740484985814,0.3055761,89494.0,89462.0,0.0486]
[1740484986017,0.033648,89493.0,89453.0,0.3235]
[1740484986194,0.30516686,89488.0,89447.0,0.0456]
[1740484986392,0.0553377,89486.0,89447.0,0.0456]
[1740484986581,0.0553377,89486.0,89454.0,0.09042051]
[1740484986582,0.25,89486.0,89454.0,0.09042051]
[1740484986984,0.25,89485.0,89454.0,0.09042051]
[1740484987187,0.0553377,89486.0,89454.0,0.09042051]
[1740484987592,0.05556031,89491.0,89454.0,0.09042051]
[1740484987841,0.05559987,89478.0,89454.0,0.09042051]
[1740484988298,0.01754299,89479.0,89454.0,0.09042051]
[1740484988462,0.01754299,89479.0,89463.0,0.09042051]
[1740484988667,0.01754299,89479.0,89464.0,0.32506468]
[1740484988873,0.0209057,89477.0,89465.0,0.0461]
[1740484989069,0.0209057,89477.0,89466.0,0.3235]
[1740484990075,0.01754299,89479.0,89466.0,0.3235]
[1740484990273,0.25,89497.0,89466.0,0.3235]
[1740484990274,0.05549019,89496.0,89466.0,0.3235]
[1740484991295,0.02090842,89495.0,89466.0,0.3235]
[1740484991706,0.0555761,89494.0,89466.0,0.3235]
[1740484992932,0.02090842,89493.0,89466.0,0.3235]
[1740484993138,0.05553533,89492.0,89466.0,0.3235]
[1740484993282,0.25,89478.0,89466.0,0.3235]
[1740484993485,0.25,89478.0,89465.0,0.0461]
[1740484993686,0.25,89478.0,89455.0,0.0812]
[1740484994382,0.05549793,89477.0,89454.0,0.0008473]
[1740484994570,0.07640635,89477.0,89454.0,0.0008473]
[1740484994767,0.07284125,89473.0,89454.0,0.0008473]
[1740484995770,0.02090842,89472.0,89454.0,0.0008473]
[1740484996536,0.033655,89471.0,89454.0,0.0008473]
[1740484996712,0.25,89462.0,89454.0,0.0008473]
[1740484997435,0.01754692,89461.0,89454.0,0.0008473]
[1740484997642,0.0485,89460.0,89454.0,0.0008473]
[1740484998122,0.24824063,89459.0,89454.0,0.0008473]
[1740484998326,0.24824063,89459.0,89414.0,0.0757]
[1740484998327,0.25,89458.0,89409.0,0.0462]
[1740484998533,0.49824063,89458.0,89409.0,0.0462]
[1740484998860,0.51914905,89458.0,89409.0,0.0462]
[1740484999480,0.05564802,89457.0,89409.0,0.0462]
[1740484999684,0.05564802,89457.0,89397.0,0.3235]
[1740484999685,0.05538568,89455.0,89432.0,0.08812471]
[1740485000387,0.05524038,89453.0,89432.0,0.08812471]
[1740485001140,0.25,89451.0,89432.0,0.06985324]
[1740485001346,0.05585558,89450.0,89440.0,1e-08]
[1740485001546,0.01755202,89447.0,89440.0,1e-08]
[1740485001740,0.05519492,89446.0,89432.0,0.06985324]
[1740485002044,0.05585558,89450.0,89432.0,0.06985324]
[1740485002464,0.02090842,89445.0,89432.0,0.06985324]
[1740485002940,0.06823561,89444.0,89432.0,0.06985324]
[1740485003375,0.06823561,89444.0,89432.0,0.05129847]
[1740485003376,0.3056109,89442.0,89432.0,0.05129847]
[1740485003577,0.30030018,89442.0,89417.0,0.09042051]
[1740485003874,0.05530615,89439.0,89388.0,0.3235]
[1740485004075,0.05510228,89437.0,89382.0,0.0777]
[1740485004316,0.00555166,89436.0,89382.0,0.0777]
[1740485004498,0.05550487,89435.0,89382.0,0.0777]
[1740485004730,0.05555187,89433.0,89382.0,0.0777]
[1740485005052,0.05531618,89431.0,89382.0,0.0777]
[1740485005211,0.05558397,89429.0,89379.0,0.0483]
[1740485005389,0.05508513,89427.0,89396.0,1e-08]
[1740485005592,0.05533261,89425.0,89396.0,1e-08]
[1740485005820,0.25,89427.0,89407.0,0.09042051]
[1740485005992,0.05530534,89426.0,89407.0,0.09042051]
[1740485006196,0.30530534,89426.0,89407.0,0.09042051]
[1740485006399,0.30530534,89426.0,89396.0,1e-08]
[1740485006400,0.02670926,89426.0,89408.0,0.09042051]
[1740485006739,0.01755647,89422.0,89418.0,0.09042051]
[1740485007318,0.01755647,89422.0,89408.0,0.13692051]
[1740485007518,0.30545901,89421.0,89396.0,1e-08]
[1740485007720,0.05570918,89420.0,89396.0,1e-08]
[1740485007942,0.05570918,89420.0,89392.0,0.0453]
[1740485009519,0.02090842,89419.0,89392.0,0.0451071]
[1740485010362,0.05528429,89412.0,89392.0,0.0451071]
[1740485010741,0.02090842,89411.0,89392.0,0.0451071]
[1740485011165,0.05535774,89410.0,89392.0,0.0451071]
[1740485011589,0.07658139,89411.0,89392.0,0.0451071]
[1740485011982,0.07658139,89411.0,89375.0,0.0774]
[1740485012393,0.25,89409.0,89375.0,0.0774]
[1740485012572,0.05526701,89408.0,89379.0,0.0469]
[1740485013442,0.05548496,89400.0,89379.0,0.0469]
[1740485014038,0.05548496,89400.0,89375.0,0.0774]
[1740485014243,0.05548496,89400.0,89366.0,0.0461]
[1740485014244,0.0552666,89398.0,89366.0,0.0461]
[1740485014653,0.28368,89399.0,89367.0,0.00326213]
[1740485014857,0.0552666,89398.0,89367.0,0.00326213]
[1740485015330,0.28368,89399.0,89367.0,0.00326213]
[1740485015545,0.28368,89399.0,89377.0,0.0015663]
[1740485015837,0.5,89400.0,89377.0,0.41548681]
[1740485015838,0.3413991,89400.0,89377.0,0.41548681]
[1740485016038,0.01755968,89401.0,89378.0,0.0819]
[1740485016213,0.00449,89399.0,89379.0,0.00156614]
[1740485016585,0.00449,89399.0,89378.0,0.0819]
[1740485017001,0.00449,89399.0,89377.0,0.3235]
[1740485017376,0.0552666,89398.0,89377.0,0.3235]
[1740485017727,0.00449,89399.0,89378.0,0.09042051]
[1740485017927,0.01755968,89401.0,89378.0,0.2021482]
[1740485018127,0.05542471,89409.0,89378.0,0.17278692]
[1740485018387,0.033674,89406.0,89378.0,0.17278692]
[1740485018540,0.09989781,89425.0,89396.0,0.09042051]
[1740485018741,0.09989781,89425.0,89399.0,0.0469]
[1740485018945,0.09596743,89425.0,89400.0,0.00156549]
[1740485019348,0.09596743,89425.0,89405.0,0.09042051]
[1740485019563,0.09596743,89425.0,89407.0,0.0808]
[1740485019812,0.09596743,89425.0,89408.0,0.00156547]
[1740485019949,0.09596743,89425.0,89410.0,0.0469]
[1740485020149,0.09596743,89425.0,89411.0,0.00156533]
[1740485021274,0.09596743,89425.0,89412.0,0.0015654]
[1740485021479,0.033658,89449.0,89412.0,0.0015654]
[1740485021672,0.033658,89449.0,89413.0,0.96585654]
[1740485021873,0.05566295,89471.0,89414.0,0.00156525]
[1740485022040,0.033657,89471.0,89415.0,0.3235]
[1740485022237,0.05524725,89470.0,89416.0,0.09480516]
[1740485022815,0.30524725,89470.0,89416.0,0.09480512]
[1740485023307,0.30524725,89470.0,89416.0,0.0808]
[1740485023537,0.30583797,89461.0,89416.0,0.0808]
[1740485023712,0.30585558,89450.0,89404.0,0.0808]
[1740485023922,0.30523641,89449.0,89411.0,0.00156561]
[1740485024326,0.30581583,89448.0,89411.0,0.00156561]
[1740485024540,0.30585572,89460.0,89411.0,0.00156561]
[1740485024681,0.01755252,89440.0,89405.0,0.0015655]
[1740485024882,0.01755252,89440.0,89404.0,0.0808]
[1740485024883,0.05511329,89439.0,89404.0,0.0808]
[1740485025147,0.05511329,89439.0,89405.0,0.3235]
[1740485025784,0.30335392,89439.0,89392.0,0.0781]
[1740485026029,0.30335392,89439.0,89391.0,0.0456]
[1740485026245,0.05588114,89430.0,89391.0,0.0456]
[1740485026848,0.05588114,89430.0,89388.0,0.00156597]
[1740485027010,0.033673,89429.0,89387.0,0.09042051]
[1740485027211,0.0555315,89428.0,89388.0,0.00156605]
[1740485027418,0.01755645,89419.0,89392.0,0.0008487]
[1740485027658,0.01755645,89419.0,89393.0,0.00156597]
[1740485028086,0.05573004,89418.0,89393.0,0.00156597]
[1740485028905,0.05573004,89418.0,89392.0,0.0008487]
[1740485029446,0.05573004,89418.0,89393.0,0.00156584]
[1740485029643,0.05573004,89418.0,89392.0,0.0008487]
[1740485029865,0.05573004,89418.0,89393.0,0.00156584]
[1740485030067,0.0555315,89428.0,89392.0,0.0008487]
[1740485030270,0.05591921,89436.0,89392.0,0.0008487]
[1740485030430,0.05598701,89416.0,89392.0,0.0008487]
[1740485031743,0.35998314,89415.0,89392.0,0.0008487]
[1740485032782,0.05592205,89413.0,89392.0,0.0008487]
[1740485034119,0.0175583,89408.0,89392.0,0.0008487]
[1740485036827,0.05513185,89414.0,89392.0,0.0008487]
[1740485037946,0.30337248,89414.0,89392.0,0.0008487]
[1740485038286,0.05574942,89412.0,89392.0,0.0008487]
[1740485038493,0.0557459,89410.0,89392.0,0.0008487]
[1740485038999,0.25,89409.0,89392.0,0.0008487]
[1740485039206,0.05574942,89412.0,89392.0,0.0008487]
[1740485039415,0.05513185,89414.0,89392.0,0.0008487]
[1740485039620,0.033673,89415.0,89395.0,0.09042051]
[1740485039930,0.033673,89415.0,89396.0,0.08096582]
[1740485040345,0.05540393,89433.0,89404.0,0.09042051]
[1740485040520,0.033669,89421.0,89405.0,0.0015656]
[1740485040953,0.05589725,89435.0,89405.0,0.0015656]
[1740485041127,0.033665,89427.0,89406.0,0.3235]
[1740485041336,0.049904,89408.0,89407.0,0.12546552]
[1740485041549,0.0016974,89439.0,89407.0,0.99176552]
[1740485041711,0.0016974,89439.0,89413.0,0.09042051]
[1740485041912,0.0016974,89439.0,89414.0,0.00156521]
[1740485042760,0.05510045,89438.0,89408.0,0.8663]
[1740485042962,0.05510045,89438.0,89409.0,0.00156536]
[1740485043191,0.05510045,89438.0,89408.0,0.8663]
[1740485043342,0.30502019,89434.0,89396.0,6e-08]
[1740485043765,0.25,89433.0,89396.0,0.00156572]
[1740485044131,0.0016974,89439.0,89396.0,0.00156572]
[1740485044339,0.01755273,89424.0,89396.0,0.00156572]
[1740485045021,0.01755273,89424.0,89396.0,0.10156572]
[1740485045348,0.01755273,89424.0,89403.0,0.09042051]
[1740485045622,0.01755273,89424.0,89404.0,0.01056745]
[1740485046026,0.01755273,89424.0,89404.0,0.0015654]
[1740485046437,0.01755273,89424.0,89397.0,0.0015654]
[1740485046663,0.01755273,89424.0,89405.0,0.1]
[1740485046780,0.01755273,89424.0,89406.0,0.00156523]
[1740485046987,0.01755273,89424.0,89407.0,0.54280006]
[1740485047206,0.01755273,89424.0,89408.0,0.54436529]
[1740485047413,0.01755273,89424.0,89408.0,0.54280006]
[1740485047639,0.01755273,89424.0,89409.0,0.00156528]
[1740485048257,0.01755273,89424.0,89408.0,0.54280006]
[1740485048480,0.01755273,89424.0,89409.0,0.00156532]
[1740485049110,0.01755273,89424.0,89408.0,0.54280006]
[1740485049312,0.01755273,89424.0,89393.0,6e-08]
[1740485049518,0.05510399,89423.0,89392.0,0.0807487]
[1740485049719,0.05510399,89423.0,89392.0,0.0008487]
[1740485050124,0.033672,89422.0,89392.0,0.0008487]
[1740485050347,0.34042051,89421.0,89392.0,0.0008487]
[1740485050548,0.30519508,89420.0,89392.0,0.0008487]
[1740485051390,0.30519508,89420.0,89405.0,0.0008485]
[1740485051992,0.05519508,89420.0,89405.0,0.0008485]
[1740485053314,0.01755751,89417.0,89405.0,0.0008485]
[1740485053522,0.05548785,89416.0,89405.0,0.0008485]
[1740485055844,0.57494063,89415.0,89405.0,0.0008485]
[1740485056045,0.30513185,89414.0,89405.0,0.0008485]
[1740485056464,0.02092027,89413.0,89405.0,0.0008485]
[1740485056691,0.05574942,89412.0,89392.0,0.0008487]
[1740485057011,0.07666969,89412.0,89392.0,0.0008487]
[1740485057451,0.01755903,89408.0,89392.0,0.0008487]
[1740485058293,0.05459827,89407.0,89392.0,0.0008487]
[1740485059871,0.02092027,89406.0,89392.0,0.0008487]
[1740485060274,0.24824063,89405.0,89392.0,0.0008487]
[1740485060451,0.25,89404.0,89392.0,0.0008487]
[1740485061414,0.02092027,89403.0,89392.0,0.0008487]
[1740485062381,0.077,89401.0,89392.0,0.0008487]
[1740485062588,0.077,89401.0,89367.0,0.0016956]
[1740485062589,0.25,89399.0,89367.0,0.0016956]
[1740485063011,0.2675613,89399.0,89367.0,0.0016956]
[1740485063212,0.2675613,89399.0,89367.0,0.00326214]
[1740485063766,0.2675613,89399.0,89367.0,0.0016956]
[1740485064213,0.02092027,89398.0,89367.0,0.0016956]
[1740485065184,0.02092027,89397.0,89367.0,0.0016956]
[1740485065404,0.02092027,89397.0,89368.0,0.00156632]
[1740485065611,0.02092027,89397.0,89367.0,0.0016956]
[1740485066365,0.2675613,89399.0,89367.0,0.0016956]
[1740485066912,0.22393818,89400.0,89367.0,0.0016956]
[1740485067547,0.22393818,89400.0,89367.0,0.00326208]
[1740485067766,0.22393818,89400.0,89367.0,0.0016956]
[1740485068328,0.22393818,89400.0,89375.0,0.0818]
[1740485068778,0.22393818,89400.0,89367.0,0.0016956]
[1740485068991,0.22393818,89400.0,89367.0,0.00326196]
[1740485069181,0.25,89392.0,89367.0,0.0016956]
[1740485070395,0.01756112,89389.0,89367.0,0.0016956]
[1740485070752,0.01756112,89389.0,89368.0,0.00156643]
[1740485071348,0.01756112,89389.0,89367.0,0.0016956]
[1740485072204,0.01756112,89389.0,89368.0,0.00156637]
[1740485072679,0.01756112,89389.0,89367.0,0.0016956]
[1740485073257,0.01756112,89389.0,89376.0,0.00150272]
[1740485073661,0.02090208,89388.0,89376.0,0.00150272]
[1740485074065,0.25,89386.0,89376.0,0.00150272]
[1740485074678,0.02090208,89385.0,89376.0,0.00150272]
[1740485074892,0.02090208,89385.0,89377.0,0.07756615]
[1740485075092,0.02090208,89385.0,89377.0,0.076]
[1740485075931,0.02090208,89385.0,89379.0,0.0464]
[1740485076201,0.05550634,89411.0,89380.0,0.00156607]
[1740485076388,0.033678,89408.0,89380.0,0.00156607]
[1740485076761,0.01755912,89394.0,89380.0,0.00156607]
[1740485077187,0.01755912,89394.0,89379.0,0.0464]
[1740485077420,0.01755912,89394.0,89377.0,0.0768483]
[1740485077607,0.01755912,89394.0,89377.0,0.0008483]
[1740485078007,0.02092551,89393.0,89377.0,0.0008483]
[1740485079278,0.02092551,89392.0,89377.0,0.0008483]
[1740485080471,0.25,89391.0,89377.0,0.0008483]
[1740485080671,0.27092551,89391.0,89376.0,0.00138371]
[1740485081248,0.02092551,89390.0,89376.0,0.00138371]
[1740485081696,0.25,89383.0,89376.0,0.00138371]
[1740485082683,0.02092551,89382.0,89376.0,0.00138371]
[1740485083592,0.52092551,89382.0,89376.0,0.00138371]
[1740485083822,0.25,89381.0,89376.0,0.00138371]
[1740485084073,0.27092551,89381.0,89376.0,0.00138371]
[1740485084609,0.004492,89380.0,89376.0,0.00138371]
[1740485085632,0.0545288,89379.0,89349.0,0.05528573]
[1740485086631,0.0545288,89379.0,89349.0,0.05685234]
[1740485086804,0.01756304,89372.0,89349.0,0.05685234]
[1740485087032,0.01756304,89372.0,89349.0,0.05528573]
[1740485087366,0.01756304,89372.0,89342.0,0.000848]
[1740485087766,0.02092551,89371.0,89342.0,0.000848]
[1740485088173,0.02092551,89371.0,89349.0,0.0008484]
[1740485088855,0.27092551,89371.0,89349.0,0.0008484]
[1740485089195,0.020926,89370.0,89349.0,0.0008484]
[1740485089542,0.04185151,89370.0,89349.0,0.0008484]
[1740485090151,0.25,89369.0,89349.0,0.0008484]
[1740485090281,0.0811,89368.0,89349.0,0.0008484]
[1740485091094,0.05585881,89367.0,89349.0,0.0008484]
[1740485091694,0.07678432,89367.0,89342.0,0.000848]
[1740485092322,0.02092551,89366.0,89342.0,0.000848]
[1740485092700,0.02092551,89366.0,89343.0,0.09042051]
[1740485092919,0.02092551,89366.0,89363.0,0.09042051]
[1740485093131,0.02092551,89366.0,89364.0,0.00156641]
[1740485093336,0.02092551,89366.0,89365.0,0.0754]
[1740485093672,0.10027255,89370.0,89366.0,0.0488]
[1740485094073,0.10027255,89370.0,89367.0,0.00156633]
[1740485094277,0.10027255,89370.0,89367.0,0.3235]
[1740485094527,0.02096231,89369.0,89367.0,0.3235]
[1740485096100,0.0385258,89369.0,89341.0,0.0807]
[1740485096425,0.0385258,89369.0,89343.0,0.00156651]
[1740485096630,0.01756349,89369.0,89343.0,0.00156651]
[1740485098303,0.01756349,89369.0,89343.0,0.04709796]
[1740485098514,0.01756349,89369.0,89344.0,0.3235]
[1740485098707,0.01756349,89369.0,89345.0,0.00156643]
[1740485099192,0.25,89382.0,89345.0,0.00156643]
[1740485099370,0.10057439,89369.0,89345.0,0.00156643]
[1740485099634,0.25,89368.0,89346.0,0.06457349]
[1740485099851,0.25,89368.0,89347.0,0.54436641]
[1740485100024,0.25,89368.0,89348.0,0.1268]
[1740485100258,0.10057439,89369.0,89349.0,0.86786635]
[1740485100473,0.10057439,89369.0,89356.0,0.0785]
[1740485100671,0.10057439,89369.0,89360.0,0.1]
[1740485100897,0.10057439,89369.0,89361.0,0.94636623]
[1740485101102,0.10057439,89369.0,89362.0,0.00156623]
[1740485101364,0.10057439,89369.0,89365.0,0.1]
[1740485101576,0.0016978,89379.0,89370.0,0.1]
[1740485101793,0.0016978,89379.0,89369.0,0.0785]
[1740485101996,0.0016978,89379.0,89366.0,0.0483]
[1740485102201,0.0016978,89379.0,89367.0,0.00156606]
[1740485102374,0.0016978,89379.0,89366.0,0.0483]
[1740485102707,0.0016978,89379.0,89367.0,0.00156611]
[1740485102910,0.0016978,89379.0,89368.0,0.04517321]
[1740485103120,0.0016978,89379.0,89369.0,0.00156603]
[1740485104270,0.0016978,89379.0,89366.0,0.0483]
[1740485104464,0.0016978,89379.0,89370.0,0.00156597]
[1740485105467,0.0016978,89379.0,89371.0,0.00156603]
[1740485106109,0.01756038,89378.0,89371.0,0.00156603]
[1740485106485,0.01756038,89378.0,89372.0,0.001566]
[1740485106664,0.01756038,89378.0,89367.0,0.001566]
[1740485108312,0.00956038,89378.0,89367.0,0.101566]
[1740485108511,0.00956038,89378.0,89368.0,0.1016166]
[1740485108715,0.0016978,89379.0,89369.0,0.00156589]
[1740485110393,0.0016978,89379.0,89376.0,0.1]
[1740485110566,0.0016968,89400.0,89386.0,0.1]
[1740485110748,0.0016968,89400.0,89370.0,0.8663]
[1740485110749,0.0016968,89400.0,89399.0,0.1]
[1740485110955,0.0016968,89400.0,89399.0,1.10476529]
[1740485111296,0.0016968,89400.0,89399.0,1.1032]
[1740485113080,0.00061161,89400.0,89399.0,1.1032]
[1740485113461,0.0016966,89414.0,89409.0,0.1]
[1740485113462,0.10049588,89411.0,89409.0,0.1]
[1740485113641,0.25,89410.0,89409.0,0.1]
[1740485113843,0.25,89410.0,89409.0,0.11]
[1740485114298,0.25,89410.0,89409.0,0.01]
[1740485114535,0.25,89410.0,89400.0,0.01392548]
[1740485114742,0.10049588,89411.0,89402.0,0.1]
[1740485114876,0.10049588,89411.0,89403.0,0.00156547]
[1740485116544,0.10049588,89411.0,89400.0,0.00156549]
[1740485116745,0.10049588,89411.0,89401.0,0.98015696]
[1740485117074,0.10049588,89411.0,89402.0,0.00156549]
[1740485117275,0.0016966,89414.0,89402.0,0.00156549]
[1740485119538,0.0016966,89414.0,89401.0,0.8663]
[1740485119740,0.0016966,89414.0,89402.0,0.00156531]
[1740485119967,0.0016966,89414.0,89402.0,0.10290184]
[1740485120624,0.0016966,89414.0,89402.0,0.00156531]
[1740485120810,0.0016966,89414.0,89402.0,0.00156536]
[1740485121427,0.0016966,89414.0,89401.0,0.8663]
[1740485121632,0.0016966,89414.0,89402.0,0.00156547]
[1740485122816,0.22650626,89425.0,89403.0,0.8663]
[1740485122975,0.22650626,89425.0,89404.0,0.96465194]
[1740485123174,0.22650626,89425.0,89404.0,0.96308655]
[1740485124291,0.0016974,89439.0,89407.0,0.1]
[1740485124493,0.0016974,89439.0,89412.0,0.1]
[1740485124705,0.0016974,89439.0,89414.0,0.0499]
[1740485124897,0.0016974,89439.0,89416.0,0.0788]
[1740485125106,0.0016974,89439.0,89417.0,0.00156501]
[1740485126217,0.01755072,89434.0,89417.0,0.00156501]
[1740485127403,0.01755072,89434.0,89418.0,0.8663]
[1740485127619,0.0016974,89439.0,89419.0,0.09435721]
[1740485128268,0.08800942,89455.0,89419.0,0.09435721]
[1740485128422,0.0551184,89454.0,89420.0,0.8663]
[1740485128626,0.08800942,89455.0,89421.0,0.00156501]
[1740485128829,0.14400367,89455.0,89421.0,0.00156501]
[1740485129032,0.14400367,89455.0,89422.0,0.09606572]
[1740485129209,0.14400367,89455.0,89423.0,0.00156501]
[1740485129841,0.08800942,89455.0,89423.0,0.00156501]
[1740485130176,0.14400367,89455.0,89423.0,0.00156501]
[1740485130581,0.25,89454.0,89423.0,0.00156501]
[1740485130784,0.25,89454.0,89423.0,0.07268465]
[1740485131582,0.0552481,89456.0,89424.0,0.3235]
[1740485131761,0.0552481,89456.0,89425.0,0.001565]
[1740485132782,0.30593161,89457.0,89426.0,0.00156513]
[1740485132957,0.05593161,89457.0,89427.0,0.08021106]
[1740485133152,0.05593161,89457.0,89424.0,0.3235]
[1740485133376,0.05593161,89457.0,89425.0,0.00156512]
[1740485133727,0.0016968,89455.0,89425.0,0.00156512]
[1740485135888,0.01755029,89448.0,89425.0,0.00156512]
[1740485136270,0.01755029,89448.0,89426.0,0.00351903]
[1740485136591,0.05581052,89447.0,89427.0,0.00156503]
[1740485136767,0.01755029,89448.0,89427.0,0.00156503]
[1740485136931,0.01755029,89448.0,89428.0,0.00352065]
[1740485137137,0.01755029,89448.0,89429.0,0.00156502]
[1740485137359,0.055959,89457.0,89429.0,0.00156502]
[1740485137568,0.055959,89457.0,89430.0,0.3235]
[1740485137787,0.0831,89458.0,89431.0,0.001565]
[1740485138001,0.0831,89458.0,89432.0,0.0325065]
[1740485138201,0.0831,89458.0,89433.0,0.00156496]
[1740485139099,0.13852543,89458.0,89433.0,0.00156496]
[1740485139303,0.0831,89458.0,89433.0,0.00156496]
[1740485140696,0.01754869,89452.0,89433.0,0.00156496]
[1740485141107,0.0831,89458.0,89434.0,0.00352065]
[1740485141308,0.0831,89458.0,89435.0,0.00156496]
[1740485141494,0.25,89459.0,89435.0,0.03442352]
[1740485141696,0.25,89459.0,89436.0,0.3235]
[1740485141949,0.25,89459.0,89437.0,0.00156492]
[1740485142121,0.25,89459.0,89438.0,0.3235]
[1740485142317,0.25,89459.0,89439.0,0.00156489]
[1740485143709,0.25,89459.0,89439.0,0.02387987]
[1740485145088,0.25,89459.0,89440.0,0.3235]
[1740485145293,0.25,89459.0,89441.0,0.00156478]
[1740485145934,0.2516958,89459.0,89441.0,0.00156478]
[1740485146790,0.2516958,89459.0,89440.0,0.3235]
[1740485146982,0.2516958,89459.0,89441.0,0.00156485]
[1740485147696,0.2516958,89459.0,89440.0,0.3235]
[1740485147819,0.0288624,89458.0,89440.0,0.3235]
[1740485148021,0.08041016,89457.0,89440.0,0.3235]
[1740485148750,0.01754782,89453.0,89441.0,0.00156499]
[1740485148946,0.34532086,89459.0,89442.0,0.3235]
[1740485149145,0.34532086,89459.0,89442.0,0.32685055]
[1740485149355,0.34532086,89459.0,89442.0,0.3235]